bitfinex-derivatives/quotes_BTCF0:USTF0_20260107
["timestamp","ask_amount","ask_price","bid_price","bid_amount"]
[1767762043468,0.010794,92699.0,92685.0,0.00035366]
[1767762044086,0.09176,92706.0,92690.0,0.00035366]
[1767762044286,0.09176,92706.0,92691.0,0.00035366]
[1767762044481,0.09176,92711.0,92691.0,0.00035366]
[1767762045083,0.18711661,92711.0,92691.0,0.00035366]
[1767762046182,0.010793,92706.0,92691.0,0.00035366]
[1767762046587,0.010794,92704.0,92691.0,0.00035366]
[1767762049679,0.010793,92707.0,92691.0,0.00035366]
[1767762049874,0.010793,92707.0,92691.0,0.10842524]
[1767762051695,0.010793,92707.0,92691.0,0.09763024]
[1767762051992,0.010793,92705.0,92691.0,0.09763024]
[1767762052289,0.010794,92701.0,92688.0,0.09176]
[1767762052990,0.010794,92704.0,92688.0,0.09176]
[1767762054692,0.10448001,92715.0,92693.0,0.010795]
[1767762054884,0.010793,92711.0,92695.0,0.010795]
[1767762055092,0.010792,92714.0,92696.0,0.10842424]
[1767762055282,0.010793,92713.0,92698.0,0.09763024]
[1767762055483,0.010793,92713.0,92698.0,0.18939024]
[1767762061289,0.010792,92718.0,92702.0,0.09968534]
[1767762061482,0.09683542,92719.0,92698.0,0.09176]
[1767762061794,0.010792,92715.0,92698.0,0.102554]
[1767762062397,0.010792,92714.0,92698.0,0.09176]
[1767762063194,0.010793,92712.0,92698.0,0.09176]
[1767762063594,0.10754692,92717.0,92698.0,0.09176]
[1767762063785,0.010793,92709.0,92698.0,0.09176]
[1767762064290,0.010793,92710.0,92698.0,0.09176]
[1767762064496,0.09683542,92713.0,92698.0,0.09176]
[1767762065098,0.10754692,92718.0,92698.0,0.09176]
[1767762065393,0.09683542,92716.0,92698.0,0.09176]
[1767762065595,0.010793,92711.0,92698.0,0.09176]
[1767762066098,0.09683542,92716.0,92698.0,0.09176]
[1767762066696,0.010793,92710.0,92698.0,0.09176]
[1767762066889,0.09683542,92716.0,92698.0,0.09176]
[1767762067090,0.10754692,92716.0,92698.0,0.09176]
[1767762068398,0.010793,92710.0,92698.0,0.09176]
[1767762068701,0.10754692,92716.0,92698.0,0.09176]
[1767762068895,0.0107115,92715.0,92698.0,0.09176]
[1767762069096,0.10754692,92714.0,92698.0,0.09176]
[1767762069297,0.010793,92710.0,92698.0,0.09176]
[1767762069499,0.10754692,92714.0,92698.0,0.09176]
[1767762070201,0.010793,92710.0,92698.0,0.09176]
[1767762070501,0.10754692,92714.0,92698.0,0.09176]
[1767762071202,0.010793,92710.0,92698.0,0.09176]
[1767762071400,0.10754692,92714.0,92698.0,0.09176]
[1767762072202,0.010793,92710.0,92698.0,0.09176]
[1767762072498,0.10754692,92714.0,92698.0,0.09176]
[1767762073194,0.010793,92710.0,92698.0,0.09176]
[1767762073391,0.10754692,92714.0,92698.0,0.09176]
[1767762073791,0.010793,92708.0,92698.0,0.09176]
[1767762074099,0.10754692,92714.0,92698.0,0.09176]
[1767762074495,0.010793,92709.0,92698.0,0.09176]
[1767762074696,0.10754692,92714.0,92698.0,0.09176]
[1767762075703,0.09683542,92712.0,92698.0,0.09176]
[1767762079298,0.010793,92708.0,92698.0,0.09176]
[1767762079897,0.010793,92710.0,92698.0,0.09277553]
[1767762080104,0.10754692,92717.0,92698.0,0.09277553]
[1767762082307,0.10754692,92717.0,92698.0,0.00101553]
[1767762082507,0.10754692,92717.0,92698.0,0.09277553]
[1767762083208,0.010793,92712.0,92698.0,0.09277553]
[1767762083800,0.10754692,92717.0,92698.0,0.09277553]
[1767762084302,0.010793,92709.0,92698.0,0.09277553]
[1767762084500,0.10754692,92717.0,92698.0,0.09277553]
[1767762085005,0.09683542,92716.0,92698.0,0.09277553]
[1767762085511,0.010793,92709.0,92698.0,0.09277553]
[1767762085807,0.10754692,92716.0,92698.0,0.09277553]
[1767762088308,0.010793,92711.0,92698.0,0.09277553]
[1767762090810,0.10754692,92716.0,92698.0,0.09277553]
[1767762091008,0.09683542,92716.0,92699.0,0.00096643]
[1767762091307,0.10754692,92716.0,92698.0,0.09176]
[1767762092308,0.010793,92708.0,92698.0,0.09176]
[1767762092508,0.10754692,92716.0,92698.0,0.09176]
[1767762094008,0.010793,92711.0,92699.0,0.00128626]
[1767762096115,0.010792,92714.0,92699.0,0.00128626]
[1767762099213,0.10762742,92716.0,92699.0,0.00128626]
[1767762099411,0.00647765,92721.0,92708.0,0.01124651]
[1767762099614,0.09585541,92728.0,92709.0,0.09176]
[1767762099916,0.010792,92719.0,92709.0,0.09176]
[1767762100213,0.09585541,92726.0,92709.0,0.09176]
[1767762101013,0.09585541,92721.0,92709.0,0.09176]
[1767762101216,0.09585541,92717.0,92709.0,0.09176]
[1767762101418,0.09585541,92713.0,92709.0,0.09176]
[1767762101713,0.010793,92712.0,92709.0,0.09176]
[1767762101916,0.010793,92712.0,92705.0,0.09176]
[1767762104718,0.010792,92715.0,92705.0,0.09176]
[1767762104920,0.10785243,92718.0,92705.0,0.09176]
[1767762105217,0.10785243,92718.0,92708.0,0.09149263]
[1767762105418,0.09585541,92717.0,92708.0,0.09149263]
[1767762106016,0.010792,92715.0,92708.0,0.09149263]
[1767762106317,0.01199702,92722.0,92705.0,0.18325263]
[1767762106511,0.010792,92716.0,92708.0,0.09149263]
[1767762106712,0.01199702,92722.0,92708.0,0.09149263]
[1767762108618,0.01199702,92721.0,92708.0,0.09149263]
[1767762108917,0.010792,92715.0,92708.0,0.09149263]
[1767762109108,0.010792,92715.0,92705.0,0.18325263]
[1767762109919,0.010792,92715.0,92705.0,0.09176]
[1767762110121,0.010792,92715.0,92705.0,0.18325263]
[1767762111518,0.010792,92714.0,92705.0,0.18325263]
[1767762111919,0.010793,92713.0,92705.0,0.18325263]
[1767762112120,0.010793,92712.0,92705.0,0.18325263]
[1767762112621,0.01199702,92718.0,92705.0,0.09176]
[1767762112918,0.01199702,92718.0,92708.0,0.09149263]
[1767762113216,0.09585541,92722.0,92695.0,0.05811363]
[1767762113217,0.01199702,92715.0,92695.0,0.06936014]
[1767762113416,0.01199702,92715.0,92700.0,0.09149263]
[1767762114119,0.010793,92708.0,92700.0,0.09149263]
[1767762114317,0.09585541,92716.0,92700.0,0.09149263]
[1767762114921,0.010793,92709.0,92700.0,0.09149263]
[1767762115111,0.09585541,92716.0,92700.0,0.09149263]
[1767762116123,0.010793,92709.0,92700.0,0.09149263]
[1767762116326,0.09585541,92716.0,92700.0,0.09149263]
[1767762116523,0.010793,92709.0,92700.0,0.09149263]
[1767762116822,0.09585541,92716.0,92700.0,0.09149263]
[1767762117024,0.010793,92710.0,92700.0,0.09149263]
[1767762117214,0.01199702,92718.0,92700.0,0.10273914]
[1767762117414,0.010793,92711.0,92706.0,0.09149263]
[1767762117614,0.010792,92720.0,92701.0,0.09149263]
[1767762117814,0.010792,92720.0,92700.0,0.10273914]
[1767762118224,0.010793,92711.0,92700.0,0.10273914]
[1767762120524,0.010793,92711.0,92701.0,0.01546784]
[1767762121526,0.010792,92719.0,92701.0,0.01546784]
[1767762121825,0.010794,92703.0,92690.0,0.09149263]
[1767762122021,0.1126221,92710.0,92691.0,0.09176]
[1767762122326,0.010793,92706.0,92700.0,0.09149263]
[1767762122626,0.010793,92706.0,92696.0,0.09149263]
[1767762123218,0.010793,92709.0,92696.0,0.09149263]
[1767762123423,0.010793,92709.0,92700.0,0.09149263]
[1767762124428,0.010792,92718.0,92701.0,0.01550375]
[1767762124730,0.010793,92712.0,92708.0,0.09149263]
[1767762124932,0.010793,92712.0,92704.0,0.01550375]
[1767762125431,0.010793,92712.0,92702.0,0.09149263]
[1767762126417,0.010793,92711.0,92702.0,0.09149263]
[1767762126616,0.010793,92711.0,92699.0,0.09123036]
[1767762126617,0.1126221,92718.0,92701.0,6.3e-07]
[1767762126833,0.01487431,92710.0,92690.0,0.10426471]
[1767762127130,0.010794,92702.0,92691.0,0.09176]
[1767762129036,0.010794,92702.0,92684.0,0.09176]
[1767762129037,0.01487431,92702.0,92684.0,0.09176]
[1767762129236,0.010794,92704.0,92676.0,0.09176]
[1767762129237,0.01487431,92693.0,92676.0,0.09176]
[1767762129443,0.09149263,92701.0,92676.0,0.09176]
[1767762129444,0.01487431,92690.0,92676.0,0.09176]
[1767762129935,0.01487431,92689.0,92676.0,0.09176]
[1767762130333,0.010796,92683.0,92676.0,0.09176]
[1767762130941,0.010796,92681.0,92676.0,0.09176]
[1767762131140,0.010796,92681.0,92672.0,0.09176]
[1767762134237,0.010796,92684.0,92673.0,0.01550375]
[1767762135044,0.010796,92684.0,92674.0,0.09149263]
[1767762135852,0.010796,92687.0,92674.0,0.09149263]
[1767762136039,0.010796,92687.0,92677.0,0.09149263]
[1767762136547,0.09774779,92695.0,92678.0,0.01550375]
[1767762136843,0.09774779,92695.0,92672.0,0.09176]
[1767762136844,0.09176,92707.0,92689.0,0.01550375]
[1767762137046,0.010794,92699.0,92690.0,0.09149263]
[1767762138247,0.010794,92704.0,92693.0,0.01550375]
[1767762138748,0.09176,92709.0,92693.0,0.01550375]
[1767762139244,0.09176,92713.0,92699.0,0.09149263]
[1767762139451,0.01487431,92716.0,92699.0,0.09149263]
[1767762139649,0.09176,92715.0,92699.0,0.09149263]
[1767762140251,0.010793,92709.0,92699.0,0.09149263]
[1767762140438,0.010794,92697.0,92682.0,0.10673411]
[1767762140644,0.010794,92697.0,92683.0,0.10726375]
[1767762141256,0.010794,92697.0,92684.0,0.09176]
[1767762142441,0.010794,92697.0,92684.0,0.10726375]
[1767762142753,0.010794,92697.0,92685.0,0.01550375]
[1767762143257,0.09774779,92706.0,92688.0,0.01550375]
[1767762143550,0.010794,92704.0,92691.0,0.01550375]
[1767762143843,0.010793,92707.0,92694.0,0.09149263]
[1767762144051,0.1126221,92711.0,92697.0,0.09149263]
[1767762144358,0.1126221,92711.0,92691.0,0.01550375]
[1767762144739,0.1126221,92711.0,92690.0,0.18272299]
[1767762144740,0.102552,92715.0,92693.0,0.01550375]
[1767762144949,0.010794,92704.0,92693.0,0.01550375]
[1767762145149,0.01487431,92712.0,92693.0,0.01550375]
[1767762145453,0.01487431,92710.0,92690.0,0.10699638]
[1767762146351,0.01487431,92710.0,92691.0,0.01550375]
[1767762147255,0.010793,92706.0,92691.0,0.01550375]
[1767762147551,0.010793,92706.0,92694.0,0.01550375]
[1767762148457,0.010793,92709.0,92694.0,0.01550375]
[1767762149455,0.010793,92712.0,92701.0,0.01550375]
[1767762149643,0.09176,92718.0,92701.0,0.01550375]
[1767762149644,0.010793,92710.0,92701.0,0.01550375]
[1767762150049,0.010793,92708.0,92700.0,0.09149263]
[1767762150246,0.010793,92708.0,92697.0,0.01550375]
[1767762150850,0.010793,92708.0,92698.0,0.09149263]
[1767762151246,0.010793,92708.0,92698.0,0.10699638]
[1767762151551,0.010793,92708.0,92699.0,0.01550375]
[1767762155464,0.010793,92708.0,92698.0,0.09149263]
[1767762158372,0.010793,92708.0,92698.0,0.11012672]
[1767762160170,0.010793,92707.0,92698.0,0.11012672]
[1767762161064,0.01951396,92712.0,92694.0,0.11039409]
[1767762161271,0.010794,92704.0,92694.0,0.09176]
[1767762163871,0.010793,92712.0,92694.0,0.09176]
[1767762163872,0.010794,92703.0,92694.0,0.09176]
[1767762166071,0.010793,92712.0,92687.0,0.09262491]
[1767762166072,0.01951396,92706.0,92687.0,0.09262491]
[1767762166263,0.01951396,92703.0,92685.0,0.01863409]
[1767762166957,0.010794,92697.0,92685.0,0.01863409]
[1767762169074,0.010794,92700.0,92685.0,0.01863409]
[1767762170574,0.010794,92700.0,92686.0,0.01863409]
[1767762174673,0.09810868,92704.0,92686.0,0.01863409]
[1767762174976,0.010794,92698.0,92686.0,0.01863409]
[1767762177471,0.010794,92697.0,92686.0,0.01863409]
[1767762179781,0.010794,92700.0,92686.0,0.01863409]
[1767762181182,0.010794,92700.0,92687.0,0.01853734]
[1767762181682,0.010794,92703.0,92687.0,0.01853734]
[1767762181876,0.010794,92703.0,92688.0,0.01811783]
[1767762183076,0.010794,92701.0,92688.0,0.01811783]
[1767762183480,0.010794,92704.0,92689.0,0.1166366]
[1767762183681,0.010794,92704.0,92690.0,0.01811783]
[1767762184987,0.1090844,92713.0,92693.0,0.01811783]
[1767762184988,0.010794,92702.0,92693.0,0.01811783]
[1767762185282,0.010794,92702.0,92692.0,0.09851877]
[1767762186578,0.010794,92702.0,92690.0,0.01811783]
[1767762193589,0.010794,92700.0,92688.0,0.01775354]
[1767762195090,0.010794,92700.0,92689.0,0.01760218]
[1767762195290,0.010794,92700.0,92690.0,0.01760218]
[1767762198195,0.010794,92702.0,92690.0,0.01760218]
[1767762199492,0.1198784,92702.0,92683.0,0.09176]
[1767762199794,0.010794,92698.0,92683.0,0.09176]
[1767762199984,0.010795,92695.0,92683.0,0.09176]
[1767762200388,0.010795,92692.0,92683.0,0.09176]
[1767762200587,0.010795,92692.0,92678.0,0.09176]
[1767762201692,0.01772718,92694.0,92678.0,0.09176]
[1767762201900,0.01772718,92695.0,92678.0,0.09176]
[1767762202105,0.01772718,92694.0,92678.0,0.09176]
[1767762203002,0.010795,92691.0,92678.0,0.09176]
[1767762203203,0.010795,92691.0,92679.0,0.01811783]
[1767762203406,0.010795,92694.0,92679.0,0.01811783]
[1767762204904,0.010795,92692.0,92679.0,0.01811783]
[1767762208017,0.010795,92692.0,92678.0,0.09176]
[1767762209009,0.010795,92690.0,92678.0,0.09176]
[1767762209520,0.010795,92695.0,92686.0,0.1166366]
[1767762209712,0.09176,92704.0,92678.0,0.09176]
[1767762210213,0.09176,92704.0,92678.0,0.10987783]
[1767762210623,0.010794,92698.0,92679.0,0.1166366]
[1767762210921,0.010794,92698.0,92680.0,0.01811783]
[1767762211109,0.010794,92698.0,92683.0,0.1166366]
[1767762211418,0.010794,92698.0,92683.0,0.09851877]
[1767762211911,0.010794,92696.0,92683.0,0.09851877]
[1767762212113,0.01900971,92701.0,92683.0,0.09851877]
[1767762212114,0.010795,92693.0,92683.0,0.09851877]
[1767762212320,0.010795,92693.0,92680.0,0.01811783]
[1767762212719,0.010795,92696.0,92680.0,0.01811783]
[1767762213523,0.010795,92694.0,92680.0,0.01811783]
[1767762216227,0.010795,92694.0,92680.0,0.10939689]
[1767762218022,0.010795,92694.0,92682.0,0.01902378]
[1767762218330,0.010794,92697.0,92684.0,0.01902378]
[1767762218517,0.010794,92697.0,92684.0,0.11030284]
[1767762218827,0.09176,92704.0,92687.0,0.01902378]
[1767762219027,0.02980271,92712.0,92691.0,0.11030284]
[1767762219028,0.010794,92699.0,92691.0,0.11030284]
[1767762219531,0.010794,92699.0,92691.0,0.09127906]
[1767762219725,0.09176,92706.0,92687.0,0.01902378]
[1767762220024,0.09176,92706.0,92687.0,0.11030284]
[1767762220224,0.010794,92699.0,92688.0,0.01902378]
[1767762220529,0.010794,92699.0,92688.0,0.11030284]
[1767762224526,0.010794,92697.0,92688.0,0.11030284]
[1767762224733,0.010794,92697.0,92688.0,0.09127906]
[1767762226131,0.01900971,92705.0,92688.0,0.09127906]
[1767762226334,0.010795,92695.0,92684.0,0.01902378]
[1767762228232,0.010795,92694.0,92684.0,0.01902378]
[1767762229033,0.010795,92692.0,92684.0,0.01902378]
[1767762229222,0.010795,92694.0,92684.0,0.01902378]
[1767762233939,0.010795,92693.0,92684.0,0.01902378]
[1767762234538,0.010795,92693.0,92683.0,0.09127906]
[1767762234929,0.010795,92692.0,92683.0,0.09127906]
[1767762235340,0.010795,92695.0,92683.0,0.09127906]
[1767762235834,0.010795,92695.0,92683.0,0.11030284]
[1767762236534,0.010795,92693.0,92683.0,0.11030284]
[1767762237338,0.010795,92695.0,92683.0,0.11030284]
[1767762237738,0.010795,92695.0,92684.0,0.01902378]
[1767762237939,0.010795,92695.0,92685.0,0.11030284]
[1767762238129,0.010795,92695.0,92686.0,0.11030284]
[1767762238329,0.010795,92695.0,92686.0,0.09127906]
[1767762240434,0.010795,92695.0,92686.0,0.10809208]
[1767762240633,0.010794,92704.0,92686.0,0.10809208]
[1767762241542,0.09176,92706.0,92691.0,0.1104292]
[1767762241735,0.09176,92706.0,92693.0,0.1104292]
[1767762242130,0.01706619,92713.0,92696.0,0.09154361]
[1767762242335,0.010793,92705.0,92700.0,0.09154361]
[1767762242529,0.010793,92705.0,92696.0,0.1104292]
[1767762242934,0.010794,92704.0,92696.0,0.0929027]
[1767762245036,0.09176,92712.0,92696.0,0.0929027]
[1767762246135,0.010793,92705.0,92696.0,0.0929027]
[1767762246335,0.09176,92712.0,92696.0,0.0929027]
[1767762246636,0.010793,92705.0,92696.0,0.0929027]
[1767762247345,0.09176,92712.0,92696.0,0.0929027]
[1767762247643,0.09176,92712.0,92700.0,0.09154361]
[1767762247844,0.010794,92704.0,92700.0,0.09154361]
[1767762248044,0.010794,92704.0,92696.0,0.0929027]
[1767762250252,0.010794,92703.0,92696.0,0.0929027]
[1767762253746,0.010794,92703.0,92696.0,0.1104292]
[1767762254151,0.010793,92706.0,92696.0,0.1104292]
[1767762254351,0.01706619,92723.0,92705.0,0.0175265]
[1767762254550,0.010793,92712.0,92705.0,0.0175265]
[1767762255052,0.010793,92712.0,92704.0,0.0929027]
[1767762257164,0.010793,92711.0,92704.0,0.0929027]
[1767762257364,0.010793,92710.0,92704.0,0.0929027]
[1767762257864,0.01706619,92718.0,92698.0,0.1104292]
[1767762258064,0.010793,92706.0,92700.0,0.09154361]
[1767762258363,0.010793,92706.0,92698.0,0.1104292]
[1767762259165,0.010793,92707.0,92699.0,0.1104292]
[1767762260265,0.010793,92710.0,92699.0,0.1104292]
[1767762260463,0.010793,92710.0,92700.0,0.09154361]
[1767762260766,0.010793,92710.0,92700.0,0.20197281]
[1767762261669,0.010793,92709.0,92700.0,0.20197281]
[1767762261965,0.01706619,92718.0,92700.0,0.20197281]
[1767762262270,0.010793,92708.0,92700.0,0.20197281]
[1767762262459,0.010793,92707.0,92700.0,0.20197281]
[1767762262654,0.010793,92707.0,92700.0,0.1104292]
[1767762266466,0.010793,92706.0,92700.0,0.1104292]
[1767762267172,0.010793,92706.0,92700.0,0.0929027]
[1767762269768,0.010793,92706.0,92700.0,0.1104292]
[1767762270177,0.010793,92706.0,92700.0,0.0929027]
[1767762270677,0.010794,92703.0,92695.0,0.09176]
[1767762271376,0.010793,92711.0,92696.0,0.0929027]
[1767762271564,0.010794,92702.0,92696.0,0.0929027]
[1767762271974,0.010794,92702.0,92696.0,0.10647455]
[1767762273278,0.010794,92704.0,92698.0,0.10409725]
[1767762273473,0.010793,92711.0,92700.0,0.09033571]
[1767762273977,0.010794,92704.0,92700.0,0.09033571]
[1767762274180,0.010794,92703.0,92700.0,0.09033571]
[1767762276883,0.010793,92705.0,92700.0,0.09033571]
[1767762278780,0.010793,92707.0,92700.0,0.09033571]
[1767762278984,0.010793,92707.0,92700.0,0.10360346]
[1767762279982,0.010793,92706.0,92700.0,0.10360346]
[1767762285788,0.010793,92705.0,92700.0,0.10360346]
[1767762285985,0.010794,92702.0,92695.0,0.09176]
[1767762286292,0.010794,92701.0,92695.0,0.09176]
[1767762286992,0.010794,92704.0,92695.0,0.09176]
[1767762287491,0.010794,92703.0,92695.0,0.09176]
[1767762287982,0.010794,92703.0,92695.0,0.09284419]
[1767762288792,0.010794,92703.0,92696.0,0.00093131]
[1767762289893,0.010794,92702.0,92696.0,0.00093131]
[1767762291095,0.010794,92702.0,92695.0,0.18209571]
[1767762291392,0.010794,92702.0,92696.0,0.00066587]
[1767762292197,0.010794,92701.0,92696.0,0.00066587]
[1767762292500,0.010794,92699.0,92695.0,0.18209571]
[1767762292792,0.010793,92709.0,92695.0,0.18209571]
[1767762293095,0.010794,92700.0,92695.0,0.18209571]
[1767762293396,0.01652748,92714.0,92695.0,0.18209571]
[1767762294084,0.010793,92713.0,92696.0,0.00013094]
[1767762294288,0.010794,92704.0,92696.0,0.00013094]
[1767762298399,0.010794,92703.0,92695.0,0.18209571]
[1767762299592,0.010794,92702.0,92695.0,0.18209571]
[1767762300198,0.010793,92712.0,92695.0,0.18209571]
[1767762300199,0.010793,92710.0,92695.0,0.18209571]
[1767762300399,0.010794,92698.0,92693.0,0.09176]
[1767762300599,0.010793,92708.0,92693.0,0.09176]
[1767762301301,0.010794,92699.0,92693.0,0.09176]
[1767762301498,0.09594687,92708.0,92689.0,0.00490061]
[1767762301803,0.010795,92691.0,92679.0,0.09176]
[1767762302100,0.010796,92685.0,92680.0,0.09176]
[1767762302898,0.010796,92683.0,92675.0,0.00483992]
[1767762303290,0.010796,92683.0,92674.0,0.09176]
[1767762303486,0.11480996,92687.0,92667.0,0.00483992]
[1767762303691,0.010797,92675.0,92668.0,0.09176]
[1767762303986,0.11480996,92683.0,92668.0,0.09176]
[1767762304408,0.010796,92680.0,92668.0,0.09176]
[1767762304794,0.09594687,92683.0,92668.0,0.09176]
[1767762304795,0.10674287,92683.0,92668.0,0.09176]
[1767762305002,0.010796,92683.0,92669.0,0.02319763]
[1767762305585,0.410796,92686.0,92669.0,0.02319763]
[1767762307192,0.010796,92684.0,92669.0,0.02319763]
[1767762307496,0.4,92686.0,92669.0,0.02319763]
[1767762307893,0.4,92686.0,92672.0,0.0252696]
[1767762308098,0.09176,92691.0,92668.0,0.102558]
[1767762308099,0.010795,92694.0,92680.0,0.0252696]
[1767762309302,0.010795,92694.0,92675.0,0.0252696]
[1767762309505,0.12040522,92695.0,92675.0,0.0252696]
[1767762309701,0.12040522,92693.0,92669.0,0.09430868]
[1767762310008,0.010796,92687.0,92670.0,0.0252696]
[1767762311611,0.010795,92691.0,92673.0,0.0252696]
[1767762311801,0.010795,92689.0,92673.0,0.0252696]
[1767762312801,0.0960375,92692.0,92673.0,0.0252696]
[1767762313413,0.010795,92688.0,92673.0,0.0252696]
[1767762313708,0.010796,92686.0,92673.0,0.0252696]
[1767762314107,0.010796,92684.0,92669.0,0.0252696]
[1767762314507,0.010796,92684.0,92668.0,0.09176]
[1767762315600,0.1068335,92686.0,92668.0,0.09176]
[1767762315804,0.1068335,92686.0,92669.0,0.0252696]
[1767762316515,0.0960375,92686.0,92669.0,0.0252696]
[1767762318215,0.010796,92681.0,92670.0,0.09176]
[1767762319314,0.010796,92681.0,92664.0,0.08565109]
[1767762319315,0.010796,92681.0,92664.0,0.11092069]
[1767762319515,0.010796,92679.0,92665.0,0.09176]
[1767762319710,0.12040522,92684.0,92665.0,0.0252696]
[1767762320017,0.0960375,92683.0,92666.0,0.09176]
[1767762320216,0.0960375,92683.0,92666.0,0.1170296]
[1767762320418,0.010796,92681.0,92666.0,0.1170296]
[1767762320808,0.010796,92681.0,92667.0,0.0252696]
[1767762321111,0.010796,92685.0,92667.0,0.0252696]
[1767762322418,0.010796,92684.0,92667.0,0.0252696]
[1767762323219,0.010795,92688.0,92672.0,0.0252696]
[1767762323719,0.010795,92688.0,92674.0,0.0252696]
[1767762323923,0.010795,92689.0,92674.0,0.0252696]
[1767762324922,0.010796,92686.0,92674.0,0.0252696]
[1767762325723,0.010796,92686.0,92669.0,0.0252696]
[1767762326326,0.010796,92683.0,92669.0,0.0252696]
[1767762326517,0.010796,92681.0,92669.0,0.0252696]
[1767762326717,0.010795,92692.0,92666.0,0.09176]
[1767762326718,0.010797,92679.0,92666.0,0.09176]
[1767762327018,0.010796,92682.0,92666.0,0.1170296]
[1767762327522,0.010796,92682.0,92667.0,0.0252696]
[1767762329917,0.010796,92684.0,92667.0,0.0252696]
[1767762330418,0.010796,92687.0,92668.0,0.11957828]
[1767762330726,0.010796,92686.0,92669.0,0.0252696]
[1767762330933,0.010796,92684.0,92669.0,0.0252696]
[1767762331224,0.010796,92683.0,92669.0,0.0252696]
[1767762331421,0.010796,92681.0,92669.0,0.0252696]
[1767762331928,0.010796,92683.0,92669.0,0.0252696]
[1767762336327,0.010796,92685.0,92669.0,0.0252696]
[1767762336829,0.010796,92683.0,92669.0,0.0252696]
[1767762342534,0.010796,92680.0,92666.0,0.11976435]
[1767762342724,0.010796,92680.0,92667.0,0.02800435]
[1767762343030,0.09596102,92686.0,92667.0,0.02800435]
[1767762343031,0.010796,92683.0,92667.0,0.02800435]
[1767762346934,0.010796,92685.0,92669.0,0.02800435]
[1767762350443,0.010796,92684.0,92669.0,0.02800435]
[1767762350732,0.010796,92683.0,92669.0,0.02800435]
[1767762350939,0.010796,92680.0,92667.0,0.02800435]
[1767762352543,0.010796,92680.0,92670.0,0.09156749]
[1767762353050,0.010796,92680.0,92671.0,0.09176]
[1767762357141,0.09596102,92686.0,92671.0,0.09176]
[1767762357348,0.09596102,92685.0,92671.0,0.09176]
[1767762358144,0.010797,92678.0,92671.0,0.09176]
[1767762361647,0.09596102,92685.0,92671.0,0.09176]
[1767762361845,0.010796,92683.0,92671.0,0.09176]
[1767762363341,0.010796,92683.0,92671.0,0.11771197]
[1767762363539,0.11751625,92690.0,92671.0,0.11771197]
[1767762364047,0.010796,92683.0,92671.0,0.11771197]
[1767762365355,0.010796,92681.0,92671.0,0.11771197]
[1767762365552,0.010795,92688.0,92671.0,0.11771197]
[1767762365851,0.10471717,92688.0,92671.0,0.11771197]
[1767762366244,0.010797,92678.0,92671.0,0.09176]
[1767762367848,0.010796,92681.0,92671.0,0.09176]
[1767762368151,0.010796,92679.0,92671.0,0.09176]
[1767762369453,0.09392217,92688.0,92672.0,0.02485172]
[1767762369649,0.010796,92684.0,92672.0,0.02485172]
[1767762372070,0.010794,92698.0,92677.0,0.02360439]
[1767762372266,0.010795,92692.0,92682.0,0.02360439]
[1767762372574,0.09176,92697.0,92682.0,0.02360439]
[1767762372871,0.09176,92697.0,92681.0,0.09867038]
[1767762372872,0.010795,92694.0,92680.0,0.09156749]
[1767762373072,0.010795,92694.0,92678.0,0.02367493]
[1767762373371,0.09176,92697.0,92680.0,0.09156749]
[1767762373670,0.010795,92691.0,92680.0,0.09156749]
[1767762373875,0.09392217,92695.0,92675.0,0.12211727]
[1767762374062,0.09392217,92694.0,92675.0,0.12211727]
[1767762375774,0.09392217,92694.0,92680.0,0.09156749]
[1767762376273,0.010795,92691.0,92680.0,0.09156749]
[1767762377173,0.09392217,92693.0,92680.0,0.09156749]
[1767762378270,0.010795,92690.0,92680.0,0.09156749]
[1767762378573,0.010795,92690.0,92675.0,0.02310139]
[1767762378870,0.010795,92690.0,92680.0,0.09156749]
[1767762382262,0.09392217,92693.0,92680.0,0.09156749]
[1767762382466,0.010795,92688.0,92680.0,0.09156749]
[1767762382668,0.010796,92684.0,92671.0,0.11350396]
[1767762382868,0.010796,92685.0,92672.0,0.02174396]
[1767762383477,0.010795,92688.0,92673.0,0.02174396]
[1767762383679,0.010796,92686.0,92673.0,0.02174396]
[1767762384280,0.010796,92686.0,92674.0,0.02187376]
[1767762386978,0.010796,92686.0,92671.0,0.09176]
[1767762387174,0.010797,92672.0,92663.0,0.08545729]
[1767762387372,0.11751625,92675.0,92657.0,0.93368495]
[1767762387576,0.09392217,92681.0,92664.0,0.09176]
[1767762387766,0.09392217,92680.0,92664.0,0.09176]
[1767762387972,0.010797,92674.0,92664.0,0.09176]
[1767762388384,0.09392217,92680.0,92664.0,0.09176]
[1767762388574,0.010797,92678.0,92664.0,0.09176]
[1767762390381,0.10471917,92678.0,92664.0,0.09176]
[1767762391182,0.010797,92678.0,92664.0,0.09454441]
[1767762391394,0.010797,92678.0,92664.0,0.09176]
[1767762391580,0.010797,92676.0,92664.0,0.09176]
[1767762391880,0.09752611,92678.0,92660.0,0.00278441]
[1767762392088,0.12041928,92677.0,92661.0,0.09176]
[1767762392286,0.010798,92669.0,92661.0,0.09176]
[1767762393182,0.010797,92673.0,92661.0,0.09176]
[1767762393786,0.10832311,92677.0,92661.0,0.09176]
[1767762393990,0.010797,92675.0,92661.0,0.09176]
[1767762394180,0.010797,92675.0,92660.0,0.09156749]
[1767762394383,0.010797,92675.0,92661.0,0.09449148]
[1767762395082,0.09752611,92682.0,92665.0,0.09406835]
[1767762395290,0.010796,92684.0,92670.0,0.09156749]
[1767762395493,0.010796,92684.0,92670.0,0.09406835]
[1767762395891,0.010796,92684.0,92670.0,0.09156749]
[1767762396192,0.010796,92684.0,92666.0,0.00227269]
[1767762396392,0.010796,92684.0,92670.0,0.09156749]
[1767762396788,0.12041928,92686.0,92666.0,0.00227269]
[1767762396991,0.12041928,92686.0,92670.0,0.09156749]
[1767762397790,0.12041928,92685.0,92666.0,0.00227269]
[1767762397986,0.12041928,92685.0,92670.0,0.09156749]
[1767762398292,0.12041928,92685.0,92666.0,0.00227269]
[1767762398493,0.12041928,92685.0,92670.0,0.09156749]
[1767762398695,0.12041928,92685.0,92666.0,0.00227269]
[1767762398994,0.010797,92677.0,92662.0,0.00125329]
[1767762400896,0.010796,92680.0,92662.0,0.00125329]
[1767762401803,0.010797,92678.0,92662.0,0.00125329]
[1767762402291,0.010797,92676.0,92662.0,0.00125329]
[1767762402500,0.12041928,92678.0,92661.0,0.09176]